{"text_format":"1","workbook":"xlsx","n_sheets":3,"sheets":["Tájékoztató","ŐsziStrázsaHonvédelmiTúra","Munka3"],"not_rendered":{"charts":0,"images":0,"macros":1,"external_links":0,"defined_names":3,"comments":0,"pivot_tables":0},"unopened":[],"bounds":{"document_bytes":16777216,"sheet_cells":100000,"rows_first":2000,"rows_last":500,"rows_between":2000,"halvings":0,"cell_chars":16384,"cell_head_chars":4096},"cells_cut":0,"cells_raw":0,"read":"whole","date_system":"1900"}

{"sheet":"Tájékoztató","index":0,"n_rows":18,"n_cols":1,"rows_kept":18,"cut":false,"hidden":false,"merged":[[7,0,7,13],[1,0,1,13],[2,0,2,13],[3,0,3,13],[4,0,4,13],[5,0,5,13],[6,0,6,13],[16,0,16,13],[17,0,17,13],[9,0,9,13],[10,0,10,13],[8,0,8,13],[11,0,11,13],[12,0,12,13],[13,0,13,13],[14,0,14,13],[15,0,15,13]]}
[]
["Őszi Strázsa Honvédelmi Túra"]
["Előnevezés"]
[" -A kitöltött nevezési lapot 2022. szeptember 22-én 24:00-ig kell visszaküldeni a strazsate@gmail.com címre. Csoportos kitöltés esetén is valamennyi cellát ki kell tölteni az ÖTPRÓBA rendszerben való azonosíthatóság érdekében."]
[" -A nevezési lapon a név, település, a születési év és a választott táv kitöltése kötelező (zöld alászínezés), valamint a csoportból legalább egy telefonszám, amelyen a túra során elérhető a csoport."]
[" -A túra távját, az ebéd adagszámot és az igényelt póló méretet a lenyíló ablakból kell kiválasztani!"]
[" -Diák csoport kísérője részére előregisztráció esetén a rendezők 100 % regisztrációs díj kedvezményt biztosítanak. (20 fő után 1 fő kísérő lehetséges) Ebben az esetben a \"kísérő\" oszlopba egy nagy K betűt kell beírni idézőjelek nélkül."]
[" -Az előnevezést követően a regisztráció a regisztrációs díj és a megrendelt étkezés és póló árának átutalásával (vagy Közösségi Házban történő befizetésével) válik érvényessé! A Honvéd Nyugdíjas Klub számlaszáma: 52800014-10105395-00000000  A „megjegyzés” rovatban kérjük feltüntetni a nevet és a születési évszámot is (csoportos nevezés esetén a csoportvezető nevét és születési évszámát) a könnyebb beazonosíthatóság érdekében."]
[]
[" -A nevezési díjak: 800, 1200 Ft (a 2004-ben és azt követően, valamint az 1952-ben és az azt megelőzően született nevezők 100 % kedvezményben részesülnek)"]
[]
[" -Az ÖTPRÓBÁVAL Párizsba versenysorozatban résztvevők a regisztrációs díjból 300 Ft kedvezményt kapnak (ha korkedvezményben nem részesültek)"]
[" -Étkezés: A célban előzetes igény alapján meleg ebédet tudnak a rendezők biztosítani 1400 Ft/fő/adag egységáron (Babgulyás füstölt csülökkel)."]
[" -A rendezvény idején a rajt és cél helyszínén büfé szolgáltatás, valamint öt EP-on folyadék- és kalória pótlás vehető igénybe, az Erdei-pihenőben helyben sütött kemencés lángost kóstolhatnak a túrázók."]
[" -További információ az egyesület oldalán (https://hnyk.hu/index.php?r=StaticPage/View/780), email-ben a strazsate@gmail.com  címen, vagy telefonon a 06-30-5386475 és a 06-20-972-54-21 telefonszámon"]
[]
[" -A szervezők felhívják a figyelmet a közúton történő gyalogos közlekedés szabályainak betartására."]
[" -A túrán minden túrázó saját felelősségére vesz részt és hozzájárul adatainak a túra befejezéséig való nyilvántartásához. A túrát követően az adatok megsemmisítésre kerülnek. A túra adatkezelési tájékoztatója elérhető: http://hnyk.hu/index.php?r=StaticPage/View/653"]

{"sheet":"ŐsziStrázsaHonvédelmiTúra","index":1,"n_rows":79,"n_cols":31,"rows_kept":79,"cut":false,"hidden":false,"merged":[[0,0,0,19],[2,0,2,17],[3,30,3,32],[1,0,1,19],[74,2,77,2],[5,1,6,1],[5,5,6,5],[5,11,6,11],[5,0,6,0],[5,15,6,15],[4,18,6,18],[5,16,6,16],[5,10,6,10],[5,6,6,6],[78,15,78,17],[74,12,77,15],[78,2,78,3],[4,19,6,19],[4,11,4,17],[5,3,6,3],[5,4,6,4],[5,2,6,2],[5,9,6,9],[5,7,6,7],[4,8,6,8],[4,0,4,7],[5,12,5,14],[5,17,6,17]]}
["CSOPORTOS  R E G I S Z T R Á C I Ó S  LAP"]
["ŐsziStrázsaHonvédelmiTúra-2022",null,null,null,null,null,null,null,null,null,null,null,null,null,null,null,null,null,null,null,null,null,null,null,"2020-08-31"]
["KITÖLTÉS: A 8-9 és 10. oszlopban a megfelelő választ a cella jobb oldalán megjelenő nyílra kattintva a lenyíló listából kell kiválasztani. Más választ nem fogad el",null,null,null,null,null,null,null,null,null,null,null,null,null,null,null,null,null,null,null,null,null,"nem kérek"]
[null,null,null,null,null,null,null,null,null,null,null,null,null,null,null,null,null,null,null,null,null,null,"S",null,"Cartogr","Táv","Regdíj","Előnevezés","Ebéd","Autóbusz","dátum (előnevezés)"]
["Alapadatok",null,null,null,null,null,null,null,"Választott táv","Ebéd (adag)","Póló (méret)","Fizetendő",null,null,null,null,null,null,"Autóbuszos szállítást kérek a vasútállomásról a rajthelyre az alábbi időpontban érkező vonathoz\n(7:21, 8:35, 9:21)","Megjegyzés",null,null,"M",null,"igen",17,800,null,0,"07:21:00","2019-03-19"]
["Fsz.","Név","Település","Születési év","Tefonszám a túra alatt\n(06xxxxxxxxx)","Email cím (nem kötelező)"," Kísérő (20 fő után 1 fő)\n\"K\"","ÖTPRÓBA azonosító\n(-300 Ft)\n(5pxxxxxx)",null,"Babgulyás, fst. csülökkel (1400 Ft/adag)","1600 Ft/db","Reg. Díj","Kedvezmé-nyek",null,null,"Ebéd","Póló","Össze-sen",null,null,null,null,"L",null,"nem",30,1200,null,1,"08:35:00","2019-04-09"]
[null,null,null,null,null,null,null,null,null,null,null,null,"aug. 31-ig előnevzés","18 év alatt, 70 év fölött 100 %","ötpróba",null,null,null,null,null,"ötpróba száma van-e","10 év alatt és 70 év fölött","XL",null,null,null,null,null,2,"09:21:00"]
[1,2,3,4,5,6,null,7,8,9,10,11,11,12,13,14,15,16,15,17,null,null,"2XL",null,null,null,null,null,3]
[1,null,null,null,null,null,null,null,null,0,"nem kérek",{"$f":"IF(ISBLANK(I9),0,VLOOKUP(I9,$Z$5:$AA$8,2))","v":0},{"$f":"IF(ISBLANK(I9),0,IF(I9>0,IF(TODAY()<$Y$2,VLOOKUP(I9,$Z$5:$AB$8,3),0)))","v":0},{"$f":"IF(ISBLANK(D9),0,IF(I9>0,IF(OR(1953>D9,2003<D9,G9=\"K\"),(L9*-1),0)))","v":0},{"$f":"IF(ISBLANK(H9),0,IF(N9<0,0,-300))","v":0},{"$f":"IF(ISBLANK(J9),0,J9*1400)","v":0},{"$f":"IF(K9=\"nem kérek\",0,1600)","v":0},{"$f":"SUM(L9:Q9)","v":0},null,null,{"$f":"COUNTA(H9:H9)","v":0},{"$f":"IF(OR(1951>D9,2009<D9),2,1)","v":2},"3XL",null,null,null,null,null,4]
[2,null,null,null,null,null,null,null,null,0,"nem kérek",{"$f":"IF(ISBLANK(I10),0,VLOOKUP(I10,$Z$5:$AA$8,2))","v":0},{"$f":"IF(ISBLANK(I10),0,IF(I10>0,IF(TODAY()<$Y$2,VLOOKUP(I10,$Z$5:$AB$8,3),0)))","v":0},{"$f":"IF(ISBLANK(D10),0,IF(I10>0,IF(OR(1953>D10,2003<D10,G10=\"K\"),(L10*-1),0)))","v":0},{"$f":"IF(ISBLANK(H10),0,IF(N10<0,0,-300))","v":0},{"$f":"IF(ISBLANK(J10),0,J10*1400)","v":0},{"$f":"IF(K10=\"nem kérek\",0,1600)","v":0},{"$f":"SUM(L10:Q10)","v":0},null,null,{"$f":"COUNTA(H10:H10)","v":0},{"$f":"IF(OR(1951>D10,2009<D10),2,1)","v":2},null,null,null,null,null,null,5]
[3,null,null,null,null,null,null,null,null,0,"nem kérek",0,0,0,0,0,0,0,null,null,{"$f":"COUNTA(H11:H11)","v":0},2]
[4,null,null,null,null,null,null,null,null,0,"nem kérek",0,0,0,0,0,0,0,null,null,0]
[5,null,null,null,null,null,null,null,null,0,"nem kérek",0,0,0,0,0,0,0,null,null,0]
[6,null,null,null,null,null,null,null,null,0,"nem kérek",0,0,0,0,0,0,0,null,null,0]
[7,null,null,null,null,null,null,null,null,0,"nem kérek",0,0,0,0,0,0,0,null,null,0]
[8,null,null,null,null,null,null,null,null,0,"nem kérek",0,0,0,0,0,0,0,null,null,0]
[9,null,null,null,null,null,null,null,null,0,"nem kérek",0,0,0,0,0,0,0,null,null,0]
[10,null,null,null,null,null,null,null,null,0,"nem kérek",0,0,0,0,0,0,0,null,null,0]
[11,null,null,null,null,null,null,null,null,0,"nem kérek",0,0,0,0,0,0,0,null,null,0]
[12,null,null,null,null,null,null,null,null,0,"nem kérek",0,0,0,0,0,0,0,null,null,0]
[13,null,null,null,null,null,null,null,null,0,"nem kérek",0,0,0,0,0,0,0,null,null,0]
[14,null,null,null,null,null,null,null,null,0,"nem kérek",0,0,0,0,0,0,0,null,null,0]
[15,null,null,null,null,null,null,null,null,0,"nem kérek",0,0,0,0,0,0,0,null,null,0]
[16,null,null,null,null,null,null,null,null,0,"nem kérek",0,0,0,0,0,0,0,null,null,0]
[17,null,null,null,null,null,null,null,null,0,"nem kérek",0,0,0,0,0,0,0,null,null,0]
[18,null,null,null,null,null,null,null,null,0,"nem kérek",0,0,0,0,0,0,0,null,null,0]
[19,null,null,null,null,null,null,null,null,0,"nem kérek",0,0,0,0,0,0,0,null,null,0]
[20,null,null,null,null,null,null,null,null,0,"nem kérek",0,0,0,0,0,0,0,null,null,0]
[21,null,null,null,null,null,null,null,null,0,"nem kérek",0,0,0,0,0,0,0,null,null,0]
[22,null,null,null,null,null,null,null,null,0,"nem kérek",0,0,0,0,0,0,0,null,null,0]
[23,null,null,null,null,null,null,null,null,0,"nem kérek",0,0,0,0,0,0,0,null,null,0]
[24,null,null,null,null,null,null,null,null,0,"nem kérek",0,0,0,0,0,0,0,null,null,0]
[25,null,null,null,null,null,null,null,null,0,"nem kérek",0,0,0,0,0,0,0,null,null,0]
[26,null,null,null,null,null,null,null,null,0,"nem kérek",0,0,0,0,0,0,0,null,null,0]
[27,null,null,null,null,null,null,null,null,0,"nem kérek",0,0,0,0,0,0,0,null,null,0]
[28,null,null,null,null,null,null,null,null,0,"nem kérek",0,0,0,0,0,0,0,null,null,0]
[29,null,null,null,null,null,null,null,null,0,"nem kérek",0,0,0,0,0,0,0,null,null,0]
[30,null,null,null,null,null,null,null,null,0,"nem kérek",0,0,0,0,0,0,0,null,null,0]
[31,null,null,null,null,null,null,null,null,0,"nem kérek",0,0,0,0,0,0,0,null,null,0]
[32,null,null,null,null,null,null,null,null,0,"nem kérek",0,0,0,0,0,0,0,null,null,0]
[33,null,null,null,null,null,null,null,null,0,"nem kérek",0,0,0,0,0,0,0,null,null,0]
[34,null,null,null,null,null,null,null,null,0,"nem kérek",0,0,0,0,0,0,0,null,null,0]
[35,null,null,null,null,null,null,null,null,0,"nem kérek",0,0,0,0,0,0,0,null,null,0]
[36,null,null,null,null,null,null,null,null,0,"nem kérek",0,0,0,0,0,0,0,null,null,0]
[37,null,null,null,null,null,null,null,null,0,"nem kérek",0,0,0,0,0,0,0,null,null,0]
[38,null,null,null,null,null,null,null,null,0,"nem kérek",0,0,0,0,0,0,0,null,null,0]
[39,null,null,null,null,null,null,null,null,0,"nem kérek",0,0,0,0,0,0,0,null,null,0]
[40,null,null,null,null,null,null,null,null,0,"nem kérek",0,0,0,0,0,0,0,null,null,0]
[41,null,null,null,null,null,null,null,null,0,"nem kérek",0,0,0,0,0,0,0,null,null,0]
[42,null,null,null,null,null,null,null,null,0,"nem kérek",0,0,0,0,0,0,0,null,null,0]
[43,null,null,null,null,null,null,null,null,0,"nem kérek",0,0,0,0,0,0,0,null,null,0]
[44,null,null,null,null,null,null,null,null,0,"nem kérek",0,0,0,0,0,0,0,null,null,0]
[45,null,null,null,null,null,null,null,null,0,"nem kérek",0,0,0,0,0,0,0,null,null,0]
[46,null,null,null,null,null,null,null,null,0,"nem kérek",0,0,0,0,0,0,0,null,null,0]
[47,null,null,null,null,null,null,null,null,0,"nem kérek",0,0,0,0,0,0,0,null,null,0]
[48,null,null,null,null,null,null,null,null,0,"nem kérek",0,0,0,0,0,0,0,null,null,0]
[49,null,null,null,null,null,null,null,null,0,"nem kérek",0,0,0,0,0,0,0,null,null,0]
[50,null,null,null,null,null,null,null,null,0,"nem kérek",0,0,0,0,0,0,0,null,null,0]
[51,null,null,null,null,null,null,null,null,0,"nem kérek",0,0,0,0,0,0,0,null,null,0]
[52,null,null,null,null,null,null,null,null,0,"nem kérek",0,0,0,0,0,0,0,null,null,0]
[53,null,null,null,null,null,null,null,null,0,"nem kérek",0,0,0,0,0,0,0,null,null,0]
[61,null,null,null,null,null,null,null,null,0,"nem kérek",0,0,0,0,0,0,0,null,null,0]
[62,null,null,null,null,null,null,null,null,0,"nem kérek",0,0,0,0,0,0,0,null,null,0]
[63,null,null,null,null,null,null,null,null,0,"nem kérek",0,0,0,0,0,0,0,null,null,0]
[64,null,null,null,null,null,null,null,null,0,"nem kérek",0,0,0,0,0,0,0,null,null,0]
[65,null,null,null,null,null,null,null,null,0,"nem kérek",0,0,0,0,0,0,0,null,null,0]
[66,null,null,null,null,null,null,null,null,0,"nem kérek",0,0,0,0,0,0,0,null,null,0]
[67,null,null,null,null,null,null,null,null,0,"nem kérek",0,0,0,0,0,0,0,null,null,0]
[68,null,null,null,null,null,null,null,null,0,"nem kérek",0,0,0,0,0,0,0,null,null,0]
[69,null,null,null,null,null,null,null,null,0,"nem kérek",0,0,0,0,0,0,0,null,null,0]
[70,null,null,null,null,null,null,null,null,0,"nem kérek",0,0,0,0,0,0,0,null,null,0]
[71,null,null,null,null,null,null,null,null,0,"nem kérek",0,0,0,0,0,0,0,null,null,0]
[null,null,null,null,null,null,null,null,null,null,null,null,null,null,null,null,null,null,null,null,{"$f":"COUNTA(H68:H68)","v":0}]
["Összesen",null,null,null,null,null,null,{"$f":"COUNTA(H9:H73)","v":0},{"$f":"SUM(I9:I73)","v":0},0,{"$f":"SUM(K9:K73)","v":0},0,0,null,0,{"$f":"SUM(P9:P73)","v":0},{"$f":"SUM(Q9:Q73)","v":0},{"$f":"SUM(R9:R73)","v":0},null,null,{"$f":"COUNTA(H69:H69)","v":0}]
[null,null,"Túrázó összesen","20 km",{"$f":"COUNTIF($I$9:$I$73,\"20\")","v":0},null,null,null,null,null,null,null,null,null,null,null,null,null,{"$f":"COUNTIF($S$9:$S$73,\"7:21\")","v":0},null,{"$f":"COUNTA(H70:H70)","v":0}]
[null,null,null,"30 km",{"$f":"COUNTIF($I$9:$I$73,\"30\")","v":0},null,null,null,null,null,null,null,null,null,null,null,null,null,{"$f":"COUNTIF($S$9:$S$73,\"8:35\")","v":0}]
[null,null,null,"40 km",{"$f":"COUNTIF($I$9:$I$73,\"40\")","v":0},null,null,null,null,null,null,null,null,null,null,null,null,null,{"$f":"COUNTIF($S$9:$S$73,\"9:21\")","v":0}]
[null,null,null,"45 km",{"$f":"COUNTIF($I$9:$I$73,\"45 km\")","v":0}]
[null,null,"Mindösszesen",null,{"$f":"SUM(E75:E78)","v":0},null,null,null,null,null,null,null,null,null,null,null,null,null,{"$f":"SUM(S75:S78)","v":0}]

{"sheet":"Munka3","index":2,"n_rows":5,"n_cols":30,"rows_kept":5,"cut":false,"hidden":true,"merged":[]}
[]
[]
[]
[]
[null,null,null,null,null,null,null,null,null,null,null,null,null,null,null,null,null,null,null,null,null,null,null,null,null,null,null,null,null,"2019-03-19"]